fUST/lending_fUST_20250222
["ID","MTS","AMOUNT","RATE_DAILY","PERIOD"]
[354095188,1740233443085,-154.796407,0.00014822,2]
[354095189,1740233443095,-557.2941539,0.00014822,2]
[354095190,1740233443105,-633.67764684,0.00014848,2]
[354095191,1740233443114,-500.0,0.00014848,2]
[354095192,1740233443124,-2050.74,0.00014849,2]
[354095193,1740233443133,-1343.35,0.00014849,2]
[354095194,1740233443143,-13942.64,0.00014849,2]
[354095195,1740233443153,-967.22,0.00014849,2]
[354095196,1740233443162,-5616.72,0.00014849,2]
[354095197,1740233443172,-500.0,0.00014849,2]
[354095198,1740233443182,-500.0,0.00014849,2]
[354095200,1740233443192,-863.72,0.00014849,2]
[354095202,1740233443203,-1708.96,0.00014849,2]
[354095204,1740233443212,-1119.59,0.00014849,2]
[354095206,1740233443223,-976.05,0.00014849,2]
[354095207,1740233443233,-500.0,0.00014849,2]
[354095208,1740233443242,-500.0,0.00014849,2]
[354095209,1740233443252,-1285.26,0.00014849,2]
[354095210,1740233443261,-500.0,0.00014849,2]
[354095211,1740233443271,-2929.11,0.00014849,2]
[354095212,1740233443281,-500.0,0.00014849,2]
[354095213,1740233443291,-500.0,0.00014873,2]
[354095214,1740233443301,-500.0,0.00014873,2]
[354095215,1740233443310,-500.0,0.00014873,2]
[354095216,1740233443320,-500.0,0.00014873,2]
[354095217,1740233443329,-500.0,0.00014873,2]
[354095218,1740233443339,-485.88394331,0.00014873,2]
[354095219,1740233443349,-500.0,0.00014873,2]
[354095220,1740233443358,-500.0,0.00014873,2]
[354095221,1740233443368,-500.0,0.00014873,2]
[354095222,1740233443377,-500.0,0.00014873,2]
[354095223,1740233443386,-344.42508021,0.00014873,2]
[354095224,1740233443396,-762.36812373,0.00014887,2]
[354095225,1740233443406,-171353.78342454,0.0001489,5]
[354095226,1740233443415,-32143.21000188,0.0001489,5]
[354095227,1740233443426,-512077.78190505,0.0001489,7]
[354095228,1740233443441,-5019.08636061,0.0001489,7]
[354095229,1740233443477,-9420.42712814,0.0001489,7]
[354095230,1740233443488,-499.9967325,0.0001489,7]
[354095231,1740233443503,-6929.05188978,0.0001489,7]
[354095232,1740233443514,-137767.81260072,0.0001489,7]
[354095233,1740233443525,-146652.2371462,0.0001489,7]
[354095253,1740233445922,-500.0,0.00013698,2]
[354095254,1740233445932,-500.0,0.0001378,2]
[354095255,1740233445943,-500.0,0.00013863,2]
[354095256,1740233445952,-153.0,0.000142,2]
[354095257,1740233445962,-2388.52758607,0.0001489,7]
[354095258,1740233445973,-1151.0,0.0001489,7]
[354095259,1740233445984,-3866.35223382,0.0001489,7]
[354095260,1740233445996,-1505.387035,0.0001489,7]
[354095261,1740233446006,-691.83741432,0.0001489,7]
[354095262,1740233446018,-772.9430983,0.0001489,7]
[354095263,1740233446029,-775.89,0.0001489,7]
[354095264,1740233446041,-9617.90266213,0.0001489,7]
[354095265,1740233446052,-5517.53944332,0.0001489,7]
[354095266,1740233446064,-11909.31818747,0.0001489,7]
[354095269,1740233916843,268.20405,9.041e-05,2]
[354096895,1740234547114,-490.0,0.0001,2]
[354096896,1740234547136,-300.0,0.0001284,2]
[354096897,1740234547159,-1495.615778,0.00012841,2]
[354096919,1740234632257,-300.0,0.0001284,2]
[354096920,1740234632267,-3266.3878,0.00012841,2]
[354096921,1740234632279,-2064.5055936,0.00012841,2]
[354096926,1740234632470,-429.03489888,0.00012841,2]
[354096927,1740234632483,-517.9462302,0.00012841,2]
[354096929,1740234632495,-4650.01821982,0.00012841,2]
[354096931,1740234632504,-187.174566,0.00012862,2]
[354096933,1740234632514,-500.0,0.00013698,2]
[354096935,1740234632523,-291.03854298,0.00013698,2]
[354096937,1740234632533,-453.38631141,0.00013698,2]
[354096939,1740234632542,-769.03,0.00013778,2]
[354096941,1740234632552,-500.0,0.00013778,2]
[354096943,1740234632561,-602.15,0.00013778,2]
[354096945,1740234632572,-503.75,0.00013778,2]
[354096947,1740234632583,-500.0,0.00013778,2]
[354096949,1740234632593,-500.0,0.00013778,2]
[354096951,1740234632602,-640.86,0.00013778,2]
[354096953,1740234632612,-500.0,0.00013778,2]
[354096955,1740234632621,-500.0,0.00013778,2]
[354096957,1740234632630,-500.0,0.00013778,2]
[354096959,1740234632640,-500.0,0.00013778,2]
[354096961,1740234632650,-546.48,0.00013778,2]
[354096963,1740234632660,-500.0,0.00013778,2]
[354096965,1740234632670,-5228.49,0.00013778,2]
[354096967,1740234632679,-1098.41,0.00013778,2]
[354096969,1740234632689,-500.0,0.00013778,2]
[354096971,1740234632698,-500.0,0.00013778,2]
[354096973,1740234632708,-381.37999621,0.00013779,2]
[354096975,1740234632720,-1724.89000379,0.00013779,2]
[354096976,1740234632729,-298.61,0.00013779,2]
[354096977,1740234632739,-500.0,0.00013779,2]
[354096978,1740234632748,-769.03,0.0001386,2]
[354096979,1740234632758,-500.0,0.0001386,2]
[354096980,1740234632767,-503.75,0.0001386,2]
[354096981,1740234632776,-500.0,0.0001386,2]
[354096982,1740234632787,-500.0,0.0001386,2]
[354096983,1740234632796,-640.86,0.0001386,2]
[354096984,1740234632806,-500.0,0.0001386,2]
[354096985,1740234632817,-500.0,0.0001386,2]
[354096986,1740234632826,-546.48,0.0001386,2]
[354096987,1740234632836,-500.0,0.0001386,2]
[354096988,1740234632846,-5228.49,0.0001386,2]
[354096989,1740234632855,-1098.41,0.0001386,2]
[354096990,1740234632864,-500.0,0.0001386,2]
[354096991,1740234632873,-500.0,0.0001386,2]
[354096992,1740234632882,-2106.27,0.00013861,2]
[354096993,1740234632891,-330.78,0.00013861,2]
[354096994,1740234632901,-769.03,0.00013943,2]
[354096995,1740234632910,-500.0,0.00013943,2]
[354096996,1740234632919,-503.75,0.00013943,2]
[354096997,1740234632929,-500.0,0.00013943,2]
[354096998,1740234632938,-500.0,0.00013943,2]
[354096999,1740234632947,-640.86,0.00013943,2]
[354097000,1740234632957,-500.0,0.00013943,2]
[354097001,1740234632966,-500.0,0.00013943,2]
[354097002,1740234632976,-546.48,0.00013943,2]
[354097003,1740234632985,-500.0,0.00013943,2]
[354097004,1740234632995,-5228.49,0.00013943,2]
[354097005,1740234633004,-1098.41,0.00013943,2]
[354097006,1740234633013,-500.0,0.00013943,2]
[354097007,1740234633023,-500.0,0.00013943,2]
[354097008,1740234633032,-2106.27,0.00013944,2]
[354097009,1740234633042,-769.03,0.00014025,2]
[354097010,1740234633052,-500.0,0.00014025,2]
[354097011,1740234633062,-503.75,0.00014025,2]
[354097012,1740234633072,-500.0,0.00014025,2]
[354097013,1740234633084,-500.0,0.00014025,2]
[354097014,1740234633094,-640.86,0.00014025,2]
[354097015,1740234633104,-500.0,0.00014025,2]
[354097016,1740234633113,-452.69,0.00014025,2]
[354097017,1740234633123,-546.48,0.00014025,2]
[354097018,1740234633132,-500.0,0.00014025,2]
[354097019,1740234633141,-992.55077522,0.00014025,2]
[354097020,1740234633154,-4235.93922478,0.00014025,2]
[354097021,1740234633164,-1098.41,0.00014025,2]
[354097022,1740234633173,-500.0,0.00014025,2]
[354097023,1740234633182,-500.0,0.00014025,2]
[354097024,1740234633192,-2106.27,0.00014026,2]
[354097025,1740234633201,-420.0,0.00014083,2]
[354097026,1740234633211,-355.0331824,0.000141,2]
[354097027,1740234633221,-769.03,0.00014107,2]
[354097028,1740234633230,-500.0,0.00014107,2]
[354097029,1740234633240,-503.75,0.00014107,2]
[354097030,1740234633250,-500.0,0.00014107,2]
[354097031,1740234633263,-500.0,0.00014107,2]
[354097032,1740234633273,-640.86,0.00014107,2]
[354097033,1740234633282,-502.92,0.00014107,2]
[354097034,1740234633292,-546.48,0.00014107,2]
[354097035,1740234633301,-500.0,0.00014107,2]
[354097036,1740234633311,-5228.49,0.00014107,2]
[354097037,1740234633320,-1098.41,0.00014107,2]
[354097038,1740234633330,-500.0,0.00014107,2]
[354097039,1740234633339,-500.0,0.00014107,2]
[354097040,1740234633348,-2106.27,0.00014108,2]
[354097041,1740234633358,-465.05386517,0.00014147,2]
[354097042,1740234633369,-769.03,0.00014189,2]
[354097043,1740234633379,-500.0,0.00014189,2]
[354097044,1740234633388,-503.75,0.00014189,2]
[354097045,1740234633397,-179.51,0.00014189,2]
[354097046,1740234633407,-500.0,0.00014189,2]
[354097047,1740234633416,-640.86,0.00014189,2]
[354097048,1740234633426,-546.48,0.00014189,2]
[354097049,1740234633435,-500.0,0.00014189,2]
[354097050,1740234633444,-4890.65588748,0.00014189,2]
[354097084,1740234638111,-268.735003,0.00014189,2]
[354097086,1740234638123,-69.09910952,0.00014189,2]
[354097087,1740234638132,-1098.41,0.00014189,2]
[354097088,1740234638142,-500.0,0.00014189,2]
[354097089,1740234638151,-301.44829542,0.00014189,2]
[354097090,1740234638162,-198.55170458,0.00014189,2]
[354097091,1740234638171,-1402.51398615,0.0001419,2]
[354097092,1740234638182,-703.75601385,0.0001419,2]
[354097093,1740234638191,-308.84398615,0.000142,2]
[354097094,1740234638203,-4118.09133432,0.000142,2]
[354097095,1740234638215,-573.06467953,0.000142,2]
[354097096,1740234638224,-5161.178,0.000142,2]
[354097097,1740234638234,-5000.0,0.000142,2]
[354097098,1740234638243,-1008.1775408,0.00014247,2]
[354097099,1740234638253,-769.03,0.00014271,2]
[354097100,1740234638266,-500.0,0.00014271,2]
[354097101,1740234638275,-503.75,0.00014271,2]
[354097103,1740234638285,-500.0,0.00014271,2]
[354097104,1740234638294,-640.86,0.00014271,2]
[354097105,1740234638303,-546.48,0.00014271,2]
[354097106,1740234638312,-500.0,0.00014271,2]
[354097107,1740234638322,-2911.00937342,0.00014271,2]
[354097108,1740234638337,-1333.99999851,0.00014271,2]
[354097109,1740234638348,-983.48062807,0.00014271,2]
[354097110,1740234638357,-1098.41,0.00014271,2]
[354097111,1740234638367,-500.0,0.00014271,2]
[354097112,1740234638376,-500.0,0.00014271,2]
[354097113,1740234638385,-2106.27,0.00014272,2]
[354097114,1740234638395,-769.03,0.00014353,2]
[354097115,1740234638404,-500.0,0.00014353,2]
[354097116,1740234638413,-503.75,0.00014353,2]
[354097117,1740234638525,-500.0,0.00014353,2]
[354097118,1740234638536,-490.66712454,0.00014353,2]
[354097119,1740234638548,-150.19287546,0.00014353,2]
[354097120,1740234638557,-546.48,0.00014353,2]
[354097121,1740234638567,-500.0,0.00014353,2]
[354097122,1740234638576,-2484.9884941,0.00014353,2]
[354097123,1740234638588,-2743.5015059,0.00014353,2]
[354097124,1740234638597,-1098.41,0.00014353,2]
[354097125,1740234638606,-257.18,0.00014353,2]
[354097126,1740234638615,-500.0,0.00014353,2]
[354097127,1740234638624,-2106.27,0.00014355,2]
[354097128,1740234638633,-769.03,0.00014436,2]
[354097129,1740234638643,-500.0,0.00014436,2]
[354097130,1740234638652,-503.75,0.00014436,2]
[354097131,1740234638661,-500.0,0.00014436,2]
[354097132,1740234638670,-640.86,0.00014436,2]
[354097133,1740234638679,-546.48,0.00014436,2]
[354097134,1740234638688,-500.0,0.00014436,2]
[354097135,1740234638698,-5228.49,0.00014436,2]
[354097136,1740234638707,-1098.41,0.00014436,2]
[354097137,1740234638717,-500.0,0.00014436,2]
[354097138,1740234638726,-2106.27,0.00014437,2]
[354097139,1740234638735,-13410.82102307,0.000145,2]
[354097140,1740234638744,-769.03,0.00014518,2]
[354097141,1740234638753,-500.0,0.00014518,2]
[354097142,1740234638763,-503.75,0.00014518,2]
[354097143,1740234638771,-500.0,0.00014518,2]
[354097144,1740234638780,-640.86,0.00014518,2]
[354097145,1740234638789,-546.48,0.00014518,2]
[354097146,1740234638798,-500.0,0.00014518,2]
[354097147,1740234638807,-5228.49,0.00014518,2]
[354097148,1740234638818,-1098.41,0.00014518,2]
[354097149,1740234638827,-500.0,0.00014518,2]
[354097150,1740234638836,-2106.27,0.00014519,2]
[354097151,1740234638845,-2859.5694531,0.00014589,2]
[354097152,1740234638855,-500.0,0.00014595,2]
[354097153,1740234638864,-500.0,0.00014595,2]
[354097154,1740234638873,-324.32452637,0.00014595,2]
[354097155,1740234638882,-355.08653656,0.00014595,2]
[354097156,1740234638891,-8445.99211267,0.00014596,2]
[354097157,1740234638979,-4478.90463167,0.00014596,2]
[354097158,1740234638989,-769.03,0.000146,2]
[354097159,1740234638998,-500.0,0.000146,2]
[354097160,1740234639007,-503.75,0.000146,2]
[354097161,1740234639016,-500.0,0.000146,2]
[354097162,1740234639026,-640.86,0.000146,2]
[354097163,1740234639035,-546.48,0.000146,2]
[354097164,1740234639044,-500.0,0.000146,2]
[354097165,1740234639053,-5228.49,0.000146,2]
[354097166,1740234639062,-1098.41,0.000146,2]
[354097167,1740234639071,-500.0,0.000146,2]
[354097168,1740234639080,-2106.27,0.00014601,2]
[354097169,1740234639089,-769.03,0.00014682,2]
[354097170,1740234639099,-500.0,0.00014682,2]
[354097171,1740234639108,-503.75,0.00014682,2]
[354097172,1740234639117,-17.27680302,0.00014682,2]
[354097176,1740234640480,-482.72319698,0.00014682,2]
[354097177,1740234640490,-558.72332338,0.00014682,2]
[354097191,1740234643244,-82.13667662,0.00014682,2]
[354097192,1740234643258,-468.55572765,0.00014682,2]
[354097193,1740234643326,-77.92427235,0.00014682,2]
[354097194,1740234643338,-500.0,0.00014682,2]
[354097195,1740234643352,-325.35572365,0.00014682,2]
[354097206,1740234646266,-1460.0152113,0.00014682,2]
[354097207,1740234646409,-1032.01014934,0.00014682,2]
[354097208,1740234646424,-1739.84400001,0.00014682,2]
[354097209,1740234646439,-671.2649157,0.00014682,2]
[354097210,1740234646451,-1098.41,0.00014682,2]
[354097211,1740234646462,-500.0,0.00014682,2]
[354097212,1740234646474,-2106.27,0.00014683,2]
[354097213,1740234646486,-10612.55510305,0.00014715,2]
[354098373,1740234979215,250.72,0.00019,120]
[354098374,1740235064807,268.877531,9.041e-05,2]
[354098406,1740235832446,-2000.0,0.00013677,2]
[354098408,1740235832455,-300.0,0.00013898,2]
[354098424,1740235832465,-138.4,0.00013899,2]
[354098430,1740235832632,-361.6,0.00013899,2]
[354098432,1740235832644,-500.0,0.00013899,2]
[354098434,1740235832654,-500.0,0.00013899,2]
[354098438,1740235832663,-500.0,0.00013899,2]
[354098441,1740235832672,-500.0,0.00013899,2]
[354098444,1740235832683,-500.0,0.00013899,2]
[354098447,1740235832692,-500.0,0.00013899,2]
[354098451,1740235832702,-500.0,0.00013899,2]
[354098454,1740235832711,-80020.41731958,0.000139,2]
[354098457,1740235832721,-379.91626006,0.00013941,2]
[354098460,1740235832731,-500.0,0.00013941,2]
[354098463,1740235832740,-549.21,0.00013941,2]
[354098465,1740235832751,-2614.24,0.00013941,2]
[354098467,1740235832760,-1053.13,0.00013941,2]
[354098468,1740235832770,-500.0,0.00013981,2]
[354098471,1740235832780,-500.0,0.00013981,2]
[354098473,1740235832791,-500.0,0.00013981,2]
[354098476,1740235832801,-500.0,0.00013981,2]
[354098477,1740235832811,-500.0,0.00013981,2]
[354098478,1740235832821,-500.0,0.00013981,2]
[354098479,1740235832830,-500.0,0.00013981,2]
[354098480,1740235832839,-500.0,0.00013981,2]
[354098481,1740235832848,-500.0,0.00014023,2]
[354098482,1740235832858,-549.21,0.00014023,2]
[354098483,1740235832867,-2614.24,0.00014023,2]
[354098484,1740235832876,-1053.13,0.00014023,2]
[354098485,1740235832885,-500.0,0.00014064,2]
[354098486,1740235832896,-500.0,0.00014064,2]
[354098487,1740235832907,-500.0,0.00014064,2]
[354098488,1740235832916,-204.99502506,0.00014064,2]
[354098489,1740235832926,-500.0,0.00014064,2]
[354098490,1740235832935,-500.0,0.00014064,2]
[354098491,1740235832944,-500.0,0.00014064,2]
[354098492,1740235832954,-500.0,0.00014064,2]
[354098493,1740235832963,-500.0,0.00014106,2]
[354098494,1740235832972,-549.21,0.00014106,2]
[354098495,1740235832981,-2614.24,0.00014106,2]
[354098496,1740235832991,-1053.13,0.00014106,2]
[354098497,1740235833001,-1576.25438821,0.00014133,2]
[354098498,1740235833010,-500.0,0.00014146,2]
[354098499,1740235833019,-500.0,0.00014146,2]
[354098500,1740235833029,-500.0,0.00014146,2]
[354098501,1740235833039,-500.0,0.00014146,2]
[354098502,1740235833048,-372.3992683,0.00014146,2]
[354098503,1740235833058,-500.0,0.00014146,2]
[354098504,1740235833067,-500.0,0.00014146,2]
[354098505,1740235833077,-500.0,0.00014188,2]
[354098506,1740235833087,-549.21,0.00014188,2]
[354098507,1740235833096,-2614.24,0.00014188,2]
[354098508,1740235833106,-1053.13,0.00014188,2]
[354098509,1740235833116,-355.293833,0.000142,2]
[354098510,1740235833127,-355.293833,0.000142,2]
[354098511,1740235833136,-537.5087565,0.000142,2]
[354098512,1740235833146,-500.0,0.00014228,2]
[354098513,1740235833155,-500.0,0.00014228,2]
[354098514,1740235833164,-500.0,0.00014228,2]
[354098515,1740235833174,-500.0,0.00014228,2]
[354098516,1740235833183,-500.0,0.00014228,2]
[354098517,1740235833193,-500.0,0.00014228,2]
[354098518,1740235833202,-500.0,0.00014246,2]
[354098519,1740235833212,-500.0,0.0001427,2]
[354098520,1740235833221,-549.21,0.0001427,2]
[354098521,1740235833231,-2614.24,0.0001427,2]
[354098522,1740235833240,-1053.13,0.0001427,2]
[354098523,1740235833250,-500.0,0.00014283,2]
[354098524,1740235833260,-13278.19900895,0.00014288,2]
[354098525,1740235833269,-355.293833,0.000143,2]
[354098526,1740235833282,-710.587666,0.000143,2]
[354098527,1740235833292,-355.293833,0.000143,2]
[354098528,1740235833301,-355.293833,0.000143,2]
[354098529,1740235833311,-355.293833,0.000143,2]
[354098530,1740235833320,-353.0173075,0.000143,2]
[354098531,1740235833328,-154.796407,0.000143,2]
[354098532,1740235833337,-557.2941539,0.000143,2]
[354098533,1740235833346,-154.796407,0.000143,2]
[354098534,1740235833355,-557.2941539,0.000143,2]
[354098535,1740235833365,-153.0,0.000143,2]
[354098536,1740235833374,-153.0,0.000143,2]
[354098537,1740235833384,-154.796407,0.000143,2]
[354098538,1740235833393,-557.2941539,0.000143,2]
[354098539,1740235833402,-153.0,0.000143,2]
[354098540,1740235833412,-153.0,0.000143,2]
[354098541,1740235833421,-154.796407,0.000143,2]
[354098542,1740235833431,-500.0,0.0001431,2]
[354098543,1740235833440,-500.0,0.0001431,2]
[354098544,1740235833451,-500.0,0.0001431,2]
[354098545,1740235833460,-500.0,0.0001431,2]
[354098546,1740235833470,-500.0,0.0001431,2]
[354098547,1740235833479,-500.0,0.0001431,2]
[354098548,1740235833489,-500.0,0.00014352,2]
[354098549,1740235833498,-549.21,0.00014352,2]
[354098550,1740235833508,-2614.24,0.00014352,2]
[354098551,1740235833518,-1053.13,0.00014352,2]
[354098552,1740235833528,-500.0,0.00014392,2]
[354098553,1740235833538,-500.0,0.00014392,2]
[354098554,1740235833549,-500.0,0.00014392,2]
[354098555,1740235833561,-500.0,0.00014392,2]
[354098556,1740235833571,-500.0,0.00014392,2]
[354098557,1740235833580,-500.0,0.00014392,2]
[354098558,1740235833590,-355.293833,0.000144,2]
[354098559,1740235833599,-500.0,0.00014434,2]
[354098560,1740235833608,-549.21,0.00014434,2]
[354098561,1740235833618,-585.45015685,0.00014434,2]
[354098562,1740235833631,-2028.78984315,0.00014434,2]
[354098563,1740235833645,-1053.13,0.00014434,2]
[354098564,1740235833656,-500.0,0.00014475,2]
[354098565,1740235833666,-263.28015685,0.00014475,2]
[354098566,1740235833682,-236.71984315,0.00014475,2]
[354098567,1740235833693,-500.0,0.00014475,2]
[354098568,1740235833703,-97.10713685,0.00014475,2]
[354098569,1740235833764,519.88234,0.00019,120]
[354098580,1740235838418,-402.89286315,0.00014475,2]
[354098581,1740235838428,-500.0,0.00014475,2]
[354098582,1740235838438,-500.0,0.00014475,2]
[354098583,1740235838447,-247.63304736,0.00014488,2]
[354098584,1740235838457,-4546.42222944,0.00014497,2]
[354098585,1740235838507,-8378.4745149,0.00014497,2]
[354098586,1740235838516,-3849.52,0.000145,2]
[354098587,1740235838526,-5118.02844219,0.00014515,2]
[354098589,1740235838535,-500.0,0.00014516,2]
[354098590,1740235838544,-549.21,0.00014516,2]
[354098591,1740235838553,-2614.24,0.00014516,2]
[354098592,1740235838563,-1053.13,0.00014516,2]
[354098593,1740235838572,-306.0,0.00014534,2]
[354098594,1740235838581,-153.0,0.00014534,2]
[354098595,1740235838590,-214.55042416,0.00014557,2]
[354098596,1740235838599,-500.0,0.00014557,2]
[354098597,1740235838608,-500.0,0.00014557,2]
[354098598,1740235838617,-500.0,0.00014557,2]
[354098599,1740235838626,-500.0,0.00014557,2]
[354098600,1740235838636,-500.0,0.00014557,2]
[354098601,1740235838649,-808.42137532,0.00014565,2]
[354098602,1740235838658,-1906.3796354,0.00014589,2]
[354098603,1740235838668,-1906.3796354,0.00014589,2]
[354098604,1740235838677,-500.0,0.00014598,2]
[354098605,1740235838687,-500.0,0.00014598,2]
[354098606,1740235838697,-500.0,0.00014598,2]
[354098607,1740235838706,-500.0,0.00014598,2]
[354098608,1740235838715,-500.0,0.00014598,2]
[354098609,1740235838725,-500.0,0.00014598,2]
[354098610,1740235838734,-500.0,0.00014598,2]
[354098611,1740235838743,-500.0,0.00014598,2]
[354098612,1740235838753,-561.94174997,0.00014598,2]
[354098613,1740235838762,-500.0,0.00014598,2]
[354098614,1740235838771,-500.0,0.00014598,2]
[354098615,1740235838780,-500.0,0.00014598,2]
[354098616,1740235838790,-500.0,0.00014599,2]
[354098617,1740235838799,-549.21,0.00014599,2]
[354098618,1740235838809,-2614.24,0.00014599,2]
[354098619,1740235838818,-1053.13,0.00014599,2]
[354098620,1740235838828,-500.0,0.00014639,2]
[354098621,1740235838838,-500.0,0.00014639,2]
[354098622,1740235838847,-500.0,0.00014639,2]
[354098623,1740235838857,-500.0,0.00014639,2]
[354098624,1740235838867,-500.0,0.00014639,2]
[354098625,1740235838876,-1519.0265654,0.00014663,2]
[354098626,1740235838886,-500.0,0.00014681,2]
[354098627,1740235838895,-549.21,0.00014681,2]
[354098628,1740235838904,-2614.24,0.00014681,2]
[354098629,1740235838913,-1053.13,0.00014681,2]
[354098630,1740235838923,-501.46570576,0.00014683,2]
[354098631,1740235838932,-1519.02656537,0.00014697,2]
[354098632,1740235838942,-1448.628,0.00014715,2]
[354098633,1740235838951,-567.54080053,0.00014721,2]
[354098634,1740235838961,-500.0,0.00014721,2]
[354098635,1740235838970,-500.0,0.00014721,2]
[354098636,1740235838979,-500.0,0.00014721,2]
[354098637,1740235838988,-500.0,0.00014721,2]
[354098638,1740235838998,-1519.02656537,0.00014732,2]
[354098639,1740235839008,-500.0,0.00014763,2]
[354098640,1740235839018,-549.21,0.00014763,2]
[354098641,1740235839028,-2614.24,0.00014763,2]
[354098642,1740235839037,-1053.13,0.00014763,2]
[354098643,1740235839047,-1519.02656537,0.00014766,2]
[354098644,1740235839056,-495.54803589,0.00014773,2]
[354098645,1740235839066,-1209.105,0.00014794,2]
[354098646,1740235839075,-175.047,0.00014794,2]
[354098647,1740235839085,-26798.21209022,0.00014799,5]
[354098648,1740235839094,-117373.3721076,0.00014799,5]
[354098649,1740235839107,-3393.27706792,0.00014799,5]
[354098698,1740235840670,-3341.17849508,0.00014799,5]
[354098700,1740235840680,-3000.0,0.000148,2]
[354098701,1740235840690,-1519.02656537,0.000148,2]
[354098702,1740235840699,-592.79131659,0.000148,2]
[354098703,1740235840716,-1407.20868341,0.000148,2]
[354098704,1740235840726,-500.0,0.00014803,2]
[354098705,1740235840735,-545.23510207,0.00014803,2]
[354098706,1740235840744,-500.0,0.00014803,2]
[354098707,1740235840753,-500.0,0.00014803,2]
[354098708,1740235840763,-157.5691995,0.00014805,4]
[354098709,1740235840774,-3.8760495,0.00014805,4]
[354098710,1740235840783,-362.1910048,0.00014831,2]
[354098711,1740235840794,-29.54491868,0.00014831,2]
[354098712,1740235840803,-479.60170331,0.00014834,2]
[354098713,1740235840812,-500.0,0.00014845,2]
[354098714,1740235840821,-549.21,0.00014845,2]
[354098715,1740235840830,-905.64337801,0.00014845,2]
[354098744,1740235843524,-72.28946178,0.00014845,2]
[354098745,1740235843536,-1636.30716021,0.00014845,2]
[354098746,1740235843545,-1053.13,0.00014845,2]
[354098747,1740235843555,-153.0,0.00014849,2]
[354098748,1740235843565,-153.0,0.00014849,2]
[354098749,1740235843574,-153.0,0.00014849,2]
[354098750,1740235843583,-153.0,0.00014849,2]
[354098751,1740235843592,-153.0,0.00014849,2]
[354098752,1740235843601,-153.0,0.00014849,2]
[354098753,1740235843610,-153.0,0.00014849,2]
[354098754,1740235843619,-153.0,0.00014849,2]
[354098755,1740235843629,-153.0,0.00014849,2]
[354098756,1740235843638,-153.0,0.00014849,2]
[354098757,1740235843652,-153.0,0.00014849,2]
[354098758,1740235843661,-465.00269326,0.00014855,2]
[354098759,1740235843671,-500.0,0.00014873,2]
[354098760,1740235843680,-1284.15788671,0.00014886,2]
[354098761,1740235843690,-500.0,0.00014886,2]
[354098762,1740235843699,-500.0,0.00014886,2]
[354098763,1740235843709,-500.0,0.00014886,2]
[354098764,1740235843719,-2217.53789625,0.0001489,7]
[354098765,1740235843735,-1630.06740788,0.0001489,7]
[354098766,1740235843746,-1928.01834026,0.0001489,7]
[354098774,1740235846404,-4930.35,0.0001489,7]
[354098775,1740235846440,-2008.2,0.0001489,7]
[354098776,1740236269825,269.813152,9.041e-05,2]
[354098779,1740236947143,-682.75965962,0.00010959,2]
[354098794,1740237032643,-445.1830682,0.00013501,2]
[354098796,1740237032655,-343.3630431,0.00013899,2]
[354098798,1740237032666,-500.0,0.00013899,2]
[354098800,1740237032678,-309.213133,0.000144,2]
[354098802,1740237032689,-161.44525,0.000144,4]